fUST/lending_fUST_20251010
["ID","MTS","AMOUNT","RATE_DAILY","PERIOD"]
[390563211,1760085039386,-500.0,0.00016438,2]
[390563212,1760085039399,-583.71909316,0.00016438,2]
[390563213,1760085039411,-500.0,0.00016438,2]
[390563214,1760085039423,-500.0,0.00016438,2]
[390563215,1760085039437,-500.0,0.00016438,2]
[390563216,1760085039451,-500.0,0.00016438,2]
[390563217,1760085039463,-844.89,0.00016438,2]
[390563218,1760085039474,-501.5660037,0.00016438,2]
[390563219,1760085039486,-981.97,0.00016438,2]
[390563220,1760085039497,-500.0,0.00016438,2]
[390563221,1760085039508,-301.53012738,0.00016438,2]
[390563222,1760085039519,-500.0,0.00016438,2]
[390563223,1760085039531,-500.0,0.00016438,2]
[390563224,1760085039543,-500.0,0.00016438,2]
[390563225,1760085039554,-209.78067756,0.00016438,2]
[390563226,1760085039566,-500.0,0.00016438,2]
[390563227,1760085039577,-500.0,0.00016438,2]
[390563228,1760085039587,-500.0,0.00016438,2]
[390563229,1760085039597,-500.0,0.00016438,2]
[390563230,1760085039609,-540.39,0.00016438,2]
[390563231,1760085039620,-500.0,0.00016438,2]
[390563232,1760085039631,-500.0,0.00016438,2]
[390563233,1760085039643,-500.0,0.00016438,2]
[390563234,1760085039655,-500.0,0.00016438,2]
[390563235,1760085039667,-501.10732289,0.00016438,2]
[390563236,1760085039679,-500.0,0.00016438,2]
[390563237,1760085039690,-500.0,0.00016438,2]
[390563238,1760085039702,-500.0,0.00016438,2]
[390563239,1760085039714,-500.0,0.00016438,2]
[390563240,1760085039730,-500.0,0.00016438,2]
[390563241,1760085039743,-500.0,0.00016438,2]
[390563242,1760085039754,-500.0,0.00016438,2]
[390563243,1760085039764,-1127.21,0.00016438,2]
[390563244,1760085039774,-500.0,0.00016438,2]
[390563245,1760085039785,-500.0,0.00016438,2]
[390563246,1760085039797,-500.0,0.00016438,2]
[390563247,1760085039811,-1932.57,0.00016438,2]
[390563248,1760085039824,-500.0,0.00016438,2]
[390563249,1760085039836,-500.0,0.00016438,2]
[390563250,1760085039849,-500.0,0.00016438,2]
[390563251,1760085039859,-500.0,0.00016438,2]
[390563252,1760085039869,-500.0,0.00016438,2]
[390563254,1760085039880,-322.11263561,0.00016438,2]
[390563256,1760085039891,-500.0,0.00016438,2]
[390563257,1760085039905,-501.55696603,0.00016438,2]
[390563259,1760085039917,-2474.48,0.00016438,2]
[390563260,1760085039927,-500.60334351,0.00016438,2]
[390563261,1760085039938,-500.0,0.00016438,2]
[390563262,1760085039949,-6658.92,0.00016438,2]
[390563263,1760085039959,-500.0,0.00016438,2]
[390563264,1760085039971,-746.09,0.00016438,2]
[390563265,1760085039982,-500.0,0.00016438,2]
[390563266,1760085039993,-502.45846065,0.00016438,2]
[390563267,1760085040005,-539.02,0.00016438,2]
[390563268,1760085040016,-500.0,0.00016438,2]
[390563269,1760085040029,-500.0,0.00016438,2]
[390563270,1760085040040,-500.0,0.00016438,2]
[390563271,1760085040052,-500.0,0.00016438,2]
[390563272,1760085040064,-500.0,0.00016438,2]
[390563273,1760085040081,-500.0,0.00016438,2]
[390563274,1760085040093,-500.0,0.00016438,2]
[390563275,1760085040105,-500.0,0.00016438,2]
[390563276,1760085040118,-445.02304004,0.00016438,2]
[390563277,1760085040133,-500.0,0.00016438,2]
[390563278,1760085040144,-500.0,0.00016438,2]
[390563279,1760085040156,-500.0,0.00016438,2]
[390563280,1760085040168,-842.81,0.00016438,2]
[390563281,1760085040179,-694.92,0.00016438,2]
[390563282,1760085040190,-500.0,0.00016438,2]
[390563283,1760085040202,-500.0,0.00016438,2]
[390563284,1760085040213,-500.0,0.00016438,2]
[390563285,1760085040225,-1801.63,0.00016438,2]
[390563286,1760085040235,-500.0,0.00016438,2]
[390563287,1760085040246,-481.31449246,0.00016438,2]
[390563288,1760085040258,-501.64638071,0.00016438,2]
[390563290,1760085040268,-500.0,0.00016438,2]
[390563291,1760085040279,-500.0,0.00016438,2]
[390563292,1760085040289,-500.0,0.00016438,2]
[390563293,1760085040301,-500.0,0.00016438,2]
[390563294,1760085040311,-1266.62,0.00016438,2]
[390563296,1760085040322,-500.0,0.00016438,2]
[390563298,1760085040332,-502.17831471,0.00016438,2]
[390563299,1760085040343,-2662.12,0.00016438,2]
[390563300,1760085040353,-500.0,0.00016438,2]
[390563301,1760085040364,-500.0,0.00016438,2]
[390563302,1760085040374,-1593.6,0.00016438,2]
[390563303,1760085040385,-500.0,0.00016438,2]
[390563304,1760085040395,-502.26101463,0.00016438,2]
[390563305,1760085040406,-816.94,0.00016438,2]
[390563306,1760085040418,-500.0,0.00016438,2]
[390563307,1760085040430,-500.0,0.00016438,2]
[390563308,1760085040440,-500.0,0.00016438,2]
[390563309,1760085040452,-500.0,0.00016438,2]
[390563310,1760085040463,-500.0,0.00016438,2]
[390563311,1760085040473,-500.0,0.00016438,2]
[390563312,1760085040484,-500.0,0.00016438,2]
[390563313,1760085040494,-1921.09,0.00016438,2]
[390563314,1760085040505,-500.0,0.00016438,2]
[390563315,1760085040516,-500.0,0.00016438,2]
[390563316,1760085040526,-500.0,0.00016438,2]
[390563317,1760085040537,-500.0,0.00016438,2]
[390563318,1760085040548,-500.0,0.00016438,2]
[390563319,1760085040559,-500.0,0.00016438,2]
[390563320,1760085040569,-500.0,0.00016438,2]
[390563321,1760085040581,-655.21,0.00016438,2]
[390563322,1760085040591,-500.0,0.00016438,2]
[390563323,1760085040602,-500.0,0.00016438,2]
[390563324,1760085040613,-500.0,0.00016438,2]
[390563325,1760085040623,-916.35,0.00016438,2]
[390563326,1760085040634,-2878.35,0.00016438,2]
[390563327,1760085040645,-1339.93,0.00016438,2]
[390563328,1760085040655,-500.0,0.00016438,2]
[390563329,1760085040666,-1186.3,0.00016438,2]
[390563330,1760085040677,-500.0,0.00016438,2]
[390563331,1760085040688,-500.0,0.00016438,2]
[390563332,1760085040699,-500.0,0.00016438,2]
[390563333,1760085040710,-500.0,0.00016438,2]
[390563334,1760085040722,-827.61,0.00016438,2]
[390563335,1760085040732,-762.18,0.00016438,2]
[390563336,1760085040742,-834.43,0.00016438,2]
[390563337,1760085040753,-505.23165234,0.00016438,2]
[390563338,1760085040763,-500.0,0.00016438,2]
[390563339,1760085040774,-501.36818589,0.00016438,2]
[390563340,1760085040785,-511.85461427,0.00016438,2]
[390563341,1760085040795,-1412.58,0.00016438,2]
[390563342,1760085040806,-500.0,0.00016438,2]
[390563343,1760085040817,-500.0,0.00016438,2]
[390563344,1760085040827,-500.0,0.00016438,2]
[390563345,1760085040838,-500.0,0.00016438,2]
[390563346,1760085040849,-3581.25,0.00016438,2]
[390563347,1760085040861,-500.0,0.00016438,2]
[390563348,1760085040871,-500.0,0.00016438,2]
[390563349,1760085040884,-500.0,0.00016438,2]
[390563350,1760085040896,-500.0,0.00016438,2]
[390563351,1760085040907,-500.0,0.00016438,2]
[390563352,1760085040919,-500.60525948,0.00016438,2]
[390563353,1760085040930,-632.45,0.00016438,2]
[390563354,1760085040941,-500.0,0.00016438,2]
[390563355,1760085040951,-500.0,0.00016438,2]
[390563356,1760085040962,-658.86,0.00016438,2]
[390563357,1760085040973,-500.0,0.00016438,2]
[390563358,1760085040983,-850.3,0.00016438,2]
[390563359,1760085040994,-500.0,0.00016438,2]
[390563360,1760085041005,-553.77,0.00016438,2]
[390563361,1760085041016,-500.0,0.00016438,2]
[390563362,1760085041027,-974.65,0.00016438,2]
[390563363,1760085041038,-500.0,0.00016438,2]
[390563364,1760085041049,-500.0,0.00016438,2]
[390563365,1760085041060,-1193.37,0.00016438,2]
[390563366,1760085041071,-667.95,0.00016438,2]
[390563367,1760085041081,-500.0,0.00016438,2]
[390563368,1760085041092,-500.0,0.00016438,2]
[390563369,1760085041103,-500.0,0.00016438,2]
[390563370,1760085041113,-501.4714528,0.00016438,2]
[390563371,1760085041129,-501.07654025,0.00016438,2]
[390563372,1760085041140,-500.0,0.00016438,2]
[390563373,1760085041151,-500.0,0.00016438,2]
[390563374,1760085041162,-726.2,0.00016438,2]
[390563375,1760085041173,-892.4,0.00016438,2]
[390563376,1760085041183,-500.0,0.00016438,2]
[390563377,1760085041194,-500.0,0.00016438,2]
[390563378,1760085041207,-500.0,0.00016438,2]
[390563379,1760085041217,-500.0,0.00016438,2]
[390563380,1760085041227,-500.0,0.00016438,2]
[390563381,1760085041236,-2398.45,0.00016438,2]
[390563382,1760085041245,-3695.74,0.00016438,2]
[390563383,1760085041255,-500.0,0.00016438,2]
[390563384,1760085041483,-1053.67,0.00016438,2]
[390563385,1760085041497,-500.0,0.00016438,2]
[390563386,1760085041506,-1086.15,0.00016438,2]
[390563387,1760085041515,-500.0,0.00016438,2]
[390563388,1760085041525,-500.0,0.00016438,2]
[390563389,1760085041534,-500.0,0.00016438,2]
[390563390,1760085041543,-500.0,0.00016438,2]
[390563391,1760085041552,-789.19,0.00016438,2]
[390563392,1760085041561,-500.0,0.00016438,2]
[390563393,1760085041570,-500.0,0.00016438,2]
[390563394,1760085041578,-791.78,0.00016438,2]
[390563395,1760085041587,-500.0,0.00016438,2]
[390563396,1760085041597,-500.0,0.00016438,2]
[390563397,1760085041606,-1753.38,0.00016438,2]
[390563398,1760085041615,-512.2,0.00016438,2]
[390563399,1760085041624,-839.17,0.00016438,2]
[390563400,1760085041633,-4738.89,0.00016438,2]
[390563401,1760085041643,-500.0,0.00016438,2]
[390563402,1760085041652,-500.0,0.00016438,2]
[390563403,1760085041661,-628.75,0.00016438,2]
[390563404,1760085041670,-500.0,0.00016438,2]
[390563405,1760085041679,-594.09,0.00016438,2]
[390563406,1760085041688,-500.0,0.00016438,2]
[390563407,1760085041697,-414.2972915,0.00016438,2]
[390563408,1760085041706,-1049.08,0.00016438,2]
[390563409,1760085041716,-500.0,0.00016438,2]
[390563410,1760085041725,-477.03086216,0.00016438,2]
[390563411,1760085041734,-500.0,0.00016438,2]
[390563412,1760085041743,-500.0,0.00016438,2]
[390563413,1760085041753,-2044.81,0.00016438,2]
[390563414,1760085041762,-560.0,0.00016438,2]
[390563415,1760085041771,-566.06,0.00016438,2]
[390563416,1760085041780,-5841.31,0.00016438,2]
[390563417,1760085041789,-500.0,0.00016438,2]
[390563418,1760085041798,-500.0,0.00016438,2]
[390563419,1760085041808,-728.94,0.00016438,2]
[390563420,1760085041818,-500.0,0.00016438,2]
[390563421,1760085041828,-500.0,0.00016438,2]
[390563422,1760085041837,-500.0,0.00016438,2]
[390563423,1760085041847,-500.0,0.00016438,2]
[390563424,1760085041856,-500.0,0.00016438,2]
[390563425,1760085041866,-500.0,0.00016438,2]
[390563426,1760085041875,-500.0,0.00016438,2]
[390563427,1760085041884,-1986.39,0.00016438,2]
[390563428,1760085041894,-500.0,0.00016438,2]
[390563429,1760085041903,-563.79,0.00016438,2]
[390563430,1760085041912,-500.0,0.00016438,2]
[390563431,1760085041922,-300.0,0.00016664,2]
[390563432,1760085041931,-300.0,0.00016664,2]
[390563433,1760085041940,-300.0,0.00016664,2]
[390563434,1760085041949,-300.0,0.00016664,2]
[390563435,1760085041959,-300.0,0.00016664,2]
[390563436,1760085041968,-300.0,0.00016664,2]
[390563437,1760085041977,-300.0,0.00016664,2]
[390563438,1760085041986,-300.0,0.00016664,2]
[390563439,1760085041996,-300.0,0.00016664,2]
[390563440,1760085042005,-300.0,0.00016664,2]
[390563441,1760085042014,-300.0,0.00016664,2]
[390563442,1760085042024,-300.0,0.00016664,2]
[390563443,1760085042033,-300.0,0.00016664,2]
[390563444,1760085042042,-300.0,0.00016664,2]
[390563445,1760085042051,-300.0,0.00016664,2]
[390563446,1760085042061,-703.91,0.00016712,2]
[390563447,1760085042070,-500.0,0.00016712,2]
[390563448,1760085042081,-500.0,0.00016712,2]
[390563449,1760085042092,-500.0,0.00016712,2]
[390563450,1760085042101,-500.0,0.00016712,2]
[390563451,1760085042111,-500.0,0.00016712,2]
[390563452,1760085042123,-500.0,0.00016712,2]
[390563453,1760085042132,-500.0,0.00016712,2]
[390563454,1760085042141,-565.37,0.00016712,2]
[390563455,1760085042151,-375.81580885,0.00016712,2]
[390563456,1760085042161,-500.0,0.00016712,2]
[390563457,1760085042171,-838.24,0.00016712,2]
[390563458,1760085042182,-300.0,0.00016712,2]
[390563459,1760085042193,-500.0,0.00016712,2]
[390563460,1760085042202,-500.0,0.00016712,2]
[390563461,1760085042211,-500.0,0.00016712,2]
[390563462,1760085042222,-500.0,0.00016712,2]
[390563463,1760085042245,-500.0,0.00016712,2]
[390563464,1760085042255,-500.0,0.00016712,2]
[390563465,1760085042264,-500.0,0.00016712,2]
[390563466,1760085042273,-500.91900089,0.00016712,2]
[390563467,1760085042283,-500.0,0.00016712,2]
[390563468,1760085042292,-500.0,0.00016712,2]
[390563469,1760085042302,-501.49543512,0.00016712,2]
[390563470,1760085042312,-189.29873602,0.00016712,2]
[390563471,1760085042322,-252.52752145,0.00016712,2]
[390563472,1760085042331,-503.57841351,0.00016712,2]
[390563473,1760085042341,-500.0,0.00016712,2]
[390563474,1760085042350,-500.0,0.00016712,2]
[390563475,1760085042360,-500.0,0.00016712,2]
[390563476,1760085042369,-500.0,0.00016712,2]
[390563477,1760085042378,-500.0,0.00016712,2]
[390563478,1760085042388,-500.0,0.00016712,2]
[390563479,1760085042397,-156.61624099,0.00016712,2]
[390563480,1760085042406,-500.0,0.00016712,2]
[390563481,1760085042415,-500.0,0.00016712,2]
[390563482,1760085042424,-500.0,0.00016712,2]
[390563483,1760085042433,-500.0,0.00016712,2]
[390563484,1760085042442,-500.0,0.00016712,2]
[390563485,1760085042451,-500.0,0.00016712,2]
[390563486,1760085042460,-500.0,0.00016712,2]
[390563487,1760085042471,-500.0,0.00016712,2]
[390563488,1760085042480,-500.0,0.00016712,2]
[390563489,1760085042489,-500.0,0.00016712,2]
[390563490,1760085042498,-1274.73,0.00016712,2]
[390563491,1760085042507,-500.0,0.00016712,2]
[390563492,1760085042516,-500.0,0.00016712,2]
[390563494,1760085042525,-500.0,0.00016712,2]
[390563496,1760085042534,-546.76,0.00016712,2]
[390563497,1760085042543,-500.0,0.00016712,2]
[390563499,1760085042552,-500.0,0.00016712,2]
[390563500,1760085042561,-500.0,0.00016712,2]
[390563501,1760085042570,-500.0,0.00016712,2]
[390563502,1760085042579,-500.0,0.00016712,2]
[390563503,1760085042588,-503.42340441,0.00016712,2]
[390563504,1760085042597,-500.0,0.00016712,2]
[390563505,1760085042606,-500.0,0.00016712,2]
[390563506,1760085042616,-500.0,0.00016712,2]
[390563507,1760085042624,-500.0,0.00016712,2]
[390563508,1760085042633,-500.0,0.00016712,2]
[390563509,1760085042643,-500.0,0.00016712,2]
[390563510,1760085042653,-500.0,0.00016712,2]
[390563511,1760085042663,-503.11882151,0.00016712,2]
[390563512,1760085042673,-500.0,0.00016712,2]
[390563513,1760085042682,-500.0,0.00016712,2]
[390563514,1760085042691,-328.10490831,0.00016712,2]
[390563515,1760085042701,-880.45,0.00016712,2]
[390563516,1760085042711,-500.0,0.00016712,2]
[390563517,1760085042720,-500.0,0.00016712,2]
[390563518,1760085042729,-500.0,0.00016712,2]
[390563519,1760085042738,-500.0,0.00016712,2]
[390563520,1760085042747,-500.0,0.00016712,2]
[390563521,1760085042756,-1022.73,0.00016712,2]
[390563522,1760085042766,-500.0,0.00016712,2]
[390563523,1760085042775,-156.88579155,0.00016712,2]
[390563524,1760085042785,-1078.6,0.00016712,2]
[390563525,1760085042794,-500.0,0.00016712,2]
[390563526,1760085042804,-500.0,0.00016712,2]
[390563527,1760085042813,-500.0,0.00016712,2]
[390563528,1760085042822,-500.0,0.00016712,2]
[390563530,1760085042832,-500.0,0.00016712,2]
[390563532,1760085042842,-401.44330821,0.00016712,2]
[390563534,1760085042851,-256.33792336,0.00016712,2]
[390563535,1760085042860,-500.0,0.00016712,2]
[390563536,1760085042869,-500.0,0.00016712,2]
[390563537,1760085042879,-500.0,0.00016712,2]
[390563539,1760085042890,-500.0,0.00016712,2]
[390563541,1760085042899,-500.0,0.00016712,2]
[390563542,1760085042910,-940.74,0.00016712,2]
[390563544,1760085042919,-500.0,0.00016712,2]
[390563546,1760085042928,-500.0,0.00016712,2]
[390563548,1760085042937,-500.0,0.00016712,2]
[390563549,1760085042947,-500.0,0.00016712,2]
[390563550,1760085042956,-1042.87,0.00016712,2]
[390563551,1760085042966,-500.0,0.00016712,2]
[390563552,1760085042975,-500.0,0.00016712,2]
[390563553,1760085042985,-971.43,0.00016712,2]
[390563554,1760085042994,-841.83,0.00016712,2]
[390563555,1760085043004,-504.79304014,0.00016712,2]
[390563556,1760085043014,-502.4887335,0.00016712,2]
[390563557,1760085043024,-500.0,0.00016712,2]
[390563558,1760085043032,-500.0,0.00016712,2]
[390563559,1760085043042,-500.0,0.00016712,2]
[390563560,1760085043052,-844.89,0.00016712,2]
[390563561,1760085043061,-981.97,0.00016712,2]
[390563562,1760085043070,-501.63990512,0.00016712,2]
[390563563,1760085043080,-500.0,0.00016712,2]
[390563564,1760085043089,-500.0,0.00016712,2]
[390563565,1760085043099,-500.0,0.00016712,2]
[390563566,1760085043108,-500.0,0.00016712,2]
[390563567,1760085043118,-500.0,0.00016712,2]
[390563568,1760085043133,-500.0,0.00016712,2]
[390563569,1760085043143,-540.39,0.00016712,2]
[390563570,1760085043152,-500.0,0.00016712,2]
[390563571,1760085043162,-500.0,0.00016712,2]
[390563572,1760085043172,-641.40000001,0.00016712,2]
[390563574,1760085043182,-500.0,0.00016712,2]
[390563575,1760085043191,-246.05984314,0.00016712,2]
[390563578,1760085043200,-500.0,0.00016712,2]
[390563579,1760085043209,-500.0,0.00016712,2]
[390563582,1760085043219,-503.7590767,0.00016712,2]
[390563583,1760085043228,-489.84391691,0.00016712,2]
[390563586,1760085043237,-500.0,0.00016712,2]
[390563588,1760085043246,-1127.21,0.00016712,2]
[390563589,1760085043256,-500.0,0.00016712,2]
[390563590,1760085043265,-500.0,0.00016712,2]
[390563591,1760085043274,-1932.57,0.00016712,2]
[390563592,1760085043284,-500.0,0.00016712,2]
[390563593,1760085043294,-500.0,0.00016712,2]
[390563594,1760085043303,-500.0,0.00016712,2]
[390563595,1760085043312,-500.0,0.00016712,2]
[390563596,1760085043322,-500.0,0.00016712,2]
[390563597,1760085043331,-2474.48,0.00016712,2]
[390563598,1760085043339,-500.0,0.00016712,2]
[390563599,1760085043349,-6658.92,0.00016712,2]
[390563600,1760085043358,-746.09,0.00016712,2]
[390563601,1760085043367,-500.0,0.00016712,2]
[390563602,1760085043376,-539.02,0.00016712,2]
[390563603,1760085043385,-602.08488313,0.00016712,2]
[390563604,1760085043395,-500.0,0.00016712,2]
[390563605,1760085043404,-500.0,0.00016712,2]
[390563606,1760085043414,-500.0,0.00016712,2]
[390563607,1760085043424,-500.0,0.00016712,2]
[390563608,1760085043442,-523.93930145,0.00016712,2]
[390563609,1760085043451,-500.0,0.00016712,2]
[390563610,1760085043460,-500.0,0.00016712,2]
[390563611,1760085043470,-500.0,0.00016712,2]
[390563612,1760085043480,-505.20872062,0.00016712,2]
[390563613,1760085043491,-842.81,0.00016712,2]
[390563614,1760085043500,-694.92,0.00016712,2]
[390563615,1760085043510,-500.0,0.00016712,2]
[390563616,1760085043519,-500.0,0.00016712,2]
[390563617,1760085043534,-1801.63,0.00016712,2]
[390563618,1760085043544,-500.0,0.00016712,2]
[390563619,1760085043553,-500.0,0.00016712,2]
[390563620,1760085043563,-1266.62,0.00016712,2]
[390563621,1760085043572,-500.0,0.00016712,2]
[390563622,1760085043581,-2662.12,0.00016712,2]
[390563623,1760085043591,-500.0,0.00016712,2]
[390563624,1760085043600,-1593.6,0.00016712,2]
[390563625,1760085043610,-500.0,0.00016712,2]
[390563626,1760085043619,-816.94,0.00016712,2]
[390563627,1760085043628,-500.0,0.00016712,2]
[390563628,1760085043638,-500.0,0.00016712,2]
[390563629,1760085043647,-500.0,0.00016712,2]
[390563630,1760085043656,-500.0,0.00016712,2]
[390563631,1760085043666,-500.0,0.00016712,2]
[390563632,1760085043676,-1921.09,0.00016712,2]
[390563633,1760085043685,-500.0,0.00016712,2]
[390563634,1760085043694,-500.0,0.00016712,2]
[390563635,1760085043704,-500.0,0.00016712,2]
[390563636,1760085043714,-500.0,0.00016712,2]
[390563637,1760085043724,-500.0,0.00016712,2]
[390563638,1760085043733,-500.0,0.00016712,2]
[390563639,1760085043745,-500.0,0.00016712,2]
[390563640,1760085043756,-655.21,0.00016712,2]
[390563641,1760085043765,-502.52250354,0.00016712,2]
[390563642,1760085043775,-500.0,0.00016712,2]
[390563643,1760085043785,-500.0,0.00016712,2]
[390563644,1760085043795,-916.35,0.00016712,2]
[390563645,1760085043805,-2878.35,0.00016712,2]
[390563646,1760085043815,-1339.93,0.00016712,2]
[390563647,1760085043823,-500.0,0.00016712,2]
[390563648,1760085043832,-1186.3,0.00016712,2]
[390563649,1760085043841,-500.0,0.00016712,2]
[390563650,1760085043850,-500.0,0.00016712,2]
[390563651,1760085043859,-307.94323806,0.00016712,2]
[390563652,1760085043868,-500.0,0.00016712,2]
[390563653,1760085043877,-827.61,0.00016712,2]
[390563654,1760085043886,-762.18,0.00016712,2]
[390563655,1760085043895,-834.43,0.00016712,2]
[390563656,1760085043904,-1412.58,0.00016712,2]
[390563657,1760085043913,-500.0,0.00016712,2]
[390563658,1760085043923,-500.0,0.00016712,2]
[390563659,1760085043932,-500.0,0.00016712,2]
[390563660,1760085043941,-3581.25,0.00016712,2]
[390563661,1760085043950,-500.0,0.00016712,2]
[390563662,1760085043959,-500.0,0.00016712,2]
[390563663,1760085043968,-502.63951751,0.00016712,2]
[390563664,1760085043977,-500.0,0.00016712,2]
[390563665,1760085043986,-500.0,0.00016712,2]
[390563666,1760085043995,-632.45,0.00016712,2]
[390563667,1760085044004,-503.19870999,0.00016712,2]
[390563668,1760085044014,-500.0,0.00016712,2]
[390563669,1760085044023,-658.86,0.00016712,2]
[390563670,1760085044031,-850.3,0.00016712,2]
[390563671,1760085044041,-500.0,0.00016712,2]
[390563672,1760085044050,-553.77,0.00016712,2]
[390563673,1760085044059,-500.0,0.00016712,2]
[390563674,1760085044068,-974.65,0.00016712,2]
[390563675,1760085044077,-500.0,0.00016712,2]
[390563676,1760085044087,-1193.37,0.00016712,2]
[390563677,1760085044096,-667.95,0.00016712,2]
[390563678,1760085044106,-500.0,0.00016712,2]
[390563679,1760085044116,-500.0,0.00016712,2]
[390563680,1760085044131,-500.0,0.00016712,2]
[390563681,1760085044140,-500.0,0.00016712,2]
[390563682,1760085044149,-500.0,0.00016712,2]
[390563683,1760085044159,-726.2,0.00016712,2]
[390563684,1760085044169,-892.4,0.00016712,2]
[390563685,1760085044178,-636.81915855,0.00016712,2]
[390563686,1760085044187,-497.8664528,0.00016712,2]
[390563687,1760085044197,-500.0,0.00016712,2]
[390563688,1760085044206,-500.0,0.00016712,2]
[390563689,1760085044217,-2398.45,0.00016712,2]
[390563690,1760085044226,-3695.74,0.00016712,2]
[390563691,1760085044235,-500.0,0.00016712,2]
[390563692,1760085044244,-1053.67,0.00016712,2]
[390563693,1760085044253,-500.0,0.00016712,2]
[390563694,1760085044262,-1086.15,0.00016712,2]
[390563695,1760085044271,-500.0,0.00016712,2]
[390563696,1760085044280,-500.0,0.00016712,2]
[390563697,1760085044291,-500.0,0.00016712,2]
[390563698,1760085044299,-500.0,0.00016712,2]
[390563699,1760085044309,-789.19,0.00016712,2]
[390563700,1760085044317,-500.0,0.00016712,2]
[390563701,1760085044326,-500.0,0.00016712,2]
[390563702,1760085044335,-791.78,0.00016712,2]
[390563703,1760085044344,-500.0,0.00016712,2]
[390563704,1760085044353,-500.0,0.00016712,2]
[390563705,1760085044363,-1753.38,0.00016712,2]
[390563706,1760085044372,-512.2,0.00016712,2]
[390563707,1760085044381,-839.17,0.00016712,2]
[390563708,1760085044390,-4738.89,0.00016712,2]
[390563709,1760085044398,-500.0,0.00016712,2]
[390563710,1760085044407,-500.0,0.00016712,2]
[390563711,1760085044416,-628.75,0.00016712,2]
[390563712,1760085044426,-500.0,0.00016712,2]
[390563713,1760085044434,-594.09,0.00016712,2]
[390563714,1760085044443,-500.0,0.00016712,2]
[390563715,1760085044452,-1049.08,0.00016712,2]
[390563716,1760085044461,-500.0,0.00016712,2]
[390563717,1760085044470,-500.0,0.00016712,2]
[390563718,1760085044479,-2044.81,0.00016712,2]
[390563719,1760085044487,-566.06,0.00016712,2]
[390563720,1760085044496,-5841.31,0.00016712,2]
[390563721,1760085044506,-504.34556787,0.00016712,2]
[390563722,1760085044515,-504.43861345,0.00016712,2]
[390563723,1760085044524,-728.94,0.00016712,2]
[390563724,1760085044533,-500.0,0.00016712,2]
[390563725,1760085044542,-500.0,0.00016712,2]
[390563726,1760085044551,-500.0,0.00016712,2]
[390563727,1760085044559,-500.0,0.00016712,2]
[390563728,1760085044568,-500.0,0.00016712,2]
[390563729,1760085044715,-1986.39,0.00016712,2]
[390563730,1760085044725,-500.0,0.00016712,2]
[390563731,1760085044735,-563.79,0.00016712,2]
[390563732,1760085044746,-500.0,0.00016712,2]
[390563733,1760085044763,-268.2940422,0.00016725,2]
[390563734,1760085044771,-600.0,0.00016766,2]
[390563735,1760085044780,-1152.50691993,0.000168,2]